[Event "*** MasterClass Titled Tuesday Blitz"]
[Site "Chess.com"]
[Date "2017.12.12"]
[Round "5"]
[White "ENEASZ"]
[Black "Mykola-Bortnyk"]
[Result "0-1"]
[WhiteElo "2417"]
[BlackElo "2682"]
[TimeControl "180+2"]
[EndTime "14:08:12 PST"]
[Termination "Mykola-Bortnyk won by checkmate"]

1. e4 {[%clk 0:03:01.9]} 1... Nf6 {[%clk 0:03:00.6]} 2. e5 {[%clk 0:03:02.6]}
2... Nd5 {[%clk 0:03:01.8]} 3. c4 {[%clk 0:03:02.6]} 3... Nb6 {[%clk 0:03:02.9]}
4. d4 {[%clk 0:03:04.2]} 4... d6 {[%clk 0:03:04.1]} 5. exd6 {[%clk 0:03:05.8]}
5... exd6 {[%clk 0:03:06]} 6. Nc3 {[%clk 0:03:05.4]} 6... Be7 {[%clk 0:03:07.3]}
7. Bd3 {[%clk 0:03:06.6]} 7... O-O {[%clk 0:03:08.2]} 8. Nge2 {[%clk 0:03:07.7]}
8... Bf6 {[%clk 0:03:09.3]} 9. Be3 {[%clk 0:03:03.2]} 9... Re8 {[%clk
0:03:07.9]} 10. O-O {[%clk 0:03:03.3]} 10... Nc6 {[%clk 0:03:09]} 11. b3 {[%clk
0:03:04.1]} 11... Bg4 {[%clk 0:03:05.6]} 12. Qd2 {[%clk 0:02:56.8]} 12... d5
{[%clk 0:03:01.9]} 13. c5 {[%clk 0:02:57.3]} 13... Nc8 {[%clk 0:03:03.3]} 14. h3
{[%clk 0:02:34.7]} 14... Bxe2 {[%clk 0:03:00.1]} 15. Nxe2 {[%clk 0:02:31.3]}
15... N8e7 {[%clk 0:03:01.1]} 16. b4 {[%clk 0:02:29.3]} 16... a6 {[%clk
0:03:01.7]} 17. a4 {[%clk 0:02:28.7]} 17... Ng6 {[%clk 0:02:51.9]} 18. b5 {[%clk
0:02:25.3]} 18... Nce7 {[%clk 0:02:51.1]} 19. bxa6 {[%clk 0:02:21.9]} 19... bxa6
{[%clk 0:02:53]} 20. Rab1 {[%clk 0:02:17.9]} 20... Qd7 {[%clk 0:02:54]} 21. Qc2
{[%clk 0:02:15.4]} 21... Nh4 {[%clk 0:02:51.5]} 22. Ng3 {[%clk 0:02:10.5]} 22...
Nc6 {[%clk 0:02:46.5]} 23. Bxh7+ {[%clk 0:02:06.8]} 23... Kh8 {[%clk 0:02:43.2]}
24. Nf5 {[%clk 0:01:56.8]} 24... Ng6 {[%clk 0:01:39.1]} 25. Bxg6 {[%clk
0:01:44]} 25... fxg6 {[%clk 0:01:41]} 26. Ng3 {[%clk 0:01:41.6]} 26... Kh7
{[%clk 0:01:42.5]} 27. Qd3 {[%clk 0:01:36.7]} 27... a5 {[%clk 0:01:42.5]} 28.
Rb5 {[%clk 0:01:34.1]} 28... Nb4 {[%clk 0:01:41.2]} 29. Qd2 {[%clk 0:00:39]}
29... c6 {[%clk 0:01:41.7]} 30. Rxa5 {[%clk 0:00:39.8]} 30... Rxa5 {[%clk
0:01:41.7]} 31. Qxb4 {[%clk 0:00:41.4]} 31... Rea8 {[%clk 0:01:41.3]} 32. Ra1
{[%clk 0:00:40.4]} 32... Qa7 {[%clk 0:01:39.4]} 33. Kh2 {[%clk 0:00:35.7]} 33...
Rxa4 {[%clk 0:01:33.6]} 34. Rxa4 {[%clk 0:00:37.6]} 34... Qxa4 {[%clk
0:01:35.1]} 35. Qb7 {[%clk 0:00:36.9]} 35... Rf8 {[%clk 0:01:30.8]} 36. Qd7
{[%clk 0:00:35.1]} 36... Qa6 {[%clk 0:01:26.7]} 37. Qd6 {[%clk 0:00:35.2]} 37...
Qc8 {[%clk 0:01:27.3]} 38. Qf4 {[%clk 0:00:16.2]} 38... Qe6 {[%clk 0:01:16.4]}
39. Qf3 {[%clk 0:00:14.4]} 39... Be7 {[%clk 0:01:16]} 40. Qg4 {[%clk 0:00:11.8]}
40... Qxg4 {[%clk 0:01:17]} 41. hxg4 {[%clk 0:00:13.7]} 41... Ra8 {[%clk
0:01:15.4]} 42. Ne2 {[%clk 0:00:13.3]} 42... Kg8 {[%clk 0:01:16.4]} 43. g5
{[%clk 0:00:14.5]} 43... Kf7 {[%clk 0:01:17.3]} 44. Kg3 {[%clk 0:00:15.5]} 44...
Ke6 {[%clk 0:01:17.1]} 45. Kg4 {[%clk 0:00:16.9]} 45... Ra4 {[%clk 0:01:16.2]}
46. Nf4+ {[%clk 0:00:18.2]} 46... Kf7 {[%clk 0:01:17.8]} 47. Nd3 {[%clk
0:00:19.8]} 47... Ke6 {[%clk 0:01:14.9]} 48. Ne5 {[%clk 0:00:21.1]} 48... Bxc5
{[%clk 0:01:15.9]} 49. Nxc6 {[%clk 0:00:20.2]} 49... Kd6 {[%clk 0:01:16.9]} 50.
Ne5 {[%clk 0:00:04.9]} 50... Bxd4 {[%clk 0:01:18.1]} 51. Bxd4 {[%clk 0:00:04.9]}
51... Rxd4+ {[%clk 0:01:20]} 52. f4 {[%clk 0:00:06.6]} 52... Rd2 {[%clk
0:01:16.7]} 53. Kf3 {[%clk 0:00:06.3]} 53... Kc5 {[%clk 0:01:14.5]} 54. Nxg6
{[%clk 0:00:06.3]} 54... d4 {[%clk 0:01:15.9]} 55. f5 {[%clk 0:00:05.6]} 55...
Rd3+ {[%clk 0:01:13.3]} 56. Kf4 {[%clk 0:00:03.6]} 56... Rd1 {[%clk 0:01:14.3]}
57. Ne5 {[%clk 0:00:03.5]} 57... Kd5 {[%clk 0:01:14.1]} 58. g4 {[%clk
0:00:02.5]} 58... Rf1+ {[%clk 0:01:12]} 59. Nf3 {[%clk 0:00:03.9]} 59... Ra1
{[%clk 0:00:53]} 60. f6 {[%clk 0:00:04.4]} 60... Ra7 {[%clk 0:00:52.4]} 61. fxg7
{[%clk 0:00:03.2]} 61... Rf7+ {[%clk 0:00:53.5]} 62. Kg3 {[%clk 0:00:03.7]}
62... Rxg7 {[%clk 0:00:55.4]} 63. Kf4 {[%clk 0:00:04.1]} 63... Rf7+ {[%clk
0:00:56.4]} 64. Kg3 {[%clk 0:00:05.3]} 64... Ke4 {[%clk 0:00:58]} 65. Nh4 {[%clk
0:00:02.2]} 65... d3 {[%clk 0:00:58.3]} 66. Nf5 {[%clk 0:00:03.2]} 66... Rxf5
{[%clk 0:00:57]} 67. gxf5 {[%clk 0:00:05.1]} 67... d2 {[%clk 0:00:58.5]} 68. g6
{[%clk 0:00:05.9]} 68... d1=Q {[%clk 0:00:59.9]} 69. g7 {[%clk 0:00:07.4]} 69...
Qg1+ {[%clk 0:01:01]} 70. Kh4 {[%clk 0:00:08.3]} 70... Kf4 {[%clk 0:01:01.1]}
71. f6 {[%clk 0:00:10.2]} 71... Qh1# {[%clk 0:01:02.3]} 0-1

[Event "*** MasterClass Titled Tuesday Blitz"]
[Site "Chess.com"]
[Date "2017.12.12"]
[Round "5"]
[White "chidori_boruto"]
[Black "Vincent_Vega95"]
[Result "0-1"]
[WhiteElo "2517"]
[BlackElo "2572"]
[TimeControl "180+2"]
[EndTime "14:08:13 PST"]
[Termination "Vincent_Vega95 won on time"]

1. e4 {[%clk 0:02:56.7]} 1... c5 {[%clk 0:03:00]} 2. Nf3 {[%clk 0:02:57.2]} 2...
d6 {[%clk 0:03:00.8]} 3. Bb5+ {[%clk 0:02:58.1]} 3... Bd7 {[%clk 0:03:01.1]} 4.
Bxd7+ {[%clk 0:02:58.2]} 4... Qxd7 {[%clk 0:03:02.9]} 5. O-O {[%clk 0:02:58.8]}
5... Nf6 {[%clk 0:03:04.1]} 6. Re1 {[%clk 0:02:59.8]} 6... Nc6 {[%clk
0:03:04.8]} 7. c3 {[%clk 0:03:01]} 7... e6 {[%clk 0:03:06]} 8. d4 {[%clk
0:03:02.2]} 8... cxd4 {[%clk 0:03:07.9]} 9. cxd4 {[%clk 0:03:03.2]} 9... d5
{[%clk 0:03:09.2]} 10. e5 {[%clk 0:02:59]} 10... Ne4 {[%clk 0:03:10.3]} 11. Nbd2
{[%clk 0:02:58.7]} 11... Nxd2 {[%clk 0:03:10.8]} 12. Bxd2 {[%clk 0:02:57.4]}
12... Be7 {[%clk 0:03:12.7]} 13. Rc1 {[%clk 0:02:52.9]} 13... O-O {[%clk
0:03:12.5]} 14. h4 {[%clk 0:02:29.1]} 14... f5 {[%clk 0:03:04]} 15. exf6 {[%clk
0:02:26.4]} 15... Bxf6 {[%clk 0:03:05.1]} 16. Bg5 {[%clk 0:02:25.7]} 16... h6
{[%clk 0:03:03.2]} 17. Bxf6 {[%clk 0:02:18.6]} 17... Rxf6 {[%clk 0:03:04.1]} 18.
Rc3 {[%clk 0:02:18.8]} 18... Raf8 {[%clk 0:03:04.1]} 19. Rce3 {[%clk 0:02:15.2]}
19... Qd6 {[%clk 0:03:00.6]} 20. Qe2 {[%clk 0:02:00.7]} 20... Qf4 {[%clk
0:03:00.6]} 21. Rxe6 {[%clk 0:01:43.5]} 21... Nxd4 {[%clk 0:02:52.9]} 22. Nxd4
{[%clk 0:01:43.2]} 22... Qxd4 {[%clk 0:02:53.6]} 23. Rxf6 {[%clk 0:01:40.7]}
23... Qxf6 {[%clk 0:02:55.4]} 24. g3 {[%clk 0:01:33]} 24... d4 {[%clk
0:02:51.6]} 25. Qe6+ {[%clk 0:01:27.9]} 25... Qxe6 {[%clk 0:02:47.4]} 26. Rxe6
{[%clk 0:01:29.1]} 26... Rd8 {[%clk 0:02:48.9]} 27. Kf1 {[%clk 0:01:26.4]} 27...
Kf7 {[%clk 0:02:49.8]} 28. Re4 {[%clk 0:01:24.7]} 28... d3 {[%clk 0:02:45.3]}
29. Ke1 {[%clk 0:01:25.3]} 29... Rc8 {[%clk 0:02:42.4]} 30. Rd4 {[%clk
0:00:51.8]} 30... Rc1+ {[%clk 0:02:41.3]} 31. Kd2 {[%clk 0:00:49.6]} 31... Rc2+
{[%clk 0:02:42]} 32. Kxd3 {[%clk 0:00:43.7]} 32... Rxb2 {[%clk 0:02:43.8]} 33.
Ra4 {[%clk 0:00:42.1]} 33... a6 {[%clk 0:02:39.9]} 34. Ke3 {[%clk 0:00:39.2]}
34... Ke6 {[%clk 0:02:35.8]} 35. f3 {[%clk 0:00:39.4]} 35... Kd5 {[%clk
0:02:34.2]} 36. g4 {[%clk 0:00:37.5]} 36... Kc5 {[%clk 0:02:28.7]} 37. g5 {[%clk
0:00:28.8]} 37... hxg5 {[%clk 0:02:27.4]} 38. hxg5 {[%clk 0:00:29]} 38... Kd6
{[%clk 0:01:38.9]} 39. Kf4 {[%clk 0:00:27.5]} 39... Ke6 {[%clk 0:01:38.7]} 40.
Re4+ {[%clk 0:00:27.7]} 40... Kf7 {[%clk 0:01:37.8]} 41. Rc4 {[%clk 0:00:28.6]}
41... Kg6 {[%clk 0:01:28.8]} 42. a4 {[%clk 0:00:29.7]} 42... a5 {[%clk
0:01:28.9]} 43. Ke5 {[%clk 0:00:19.4]} 43... Rb4 {[%clk 0:01:24.8]} 44. Rc7
{[%clk 0:00:20.4]} 44... b5 {[%clk 0:01:22.9]} 45. f4 {[%clk 0:00:19.8]} 45...
bxa4 {[%clk 0:01:12.1]} 46. f5+ {[%clk 0:00:20.6]} 46... Kxg5 {[%clk 0:01:11.6]}
47. Rxg7+ {[%clk 0:00:21.6]} 47... Kh6 {[%clk 0:01:12.8]} 48. Ra7 {[%clk
0:00:22.2]} 48... Rb5+ {[%clk 0:01:12]} 49. Ke6 {[%clk 0:00:19.3]} 49... a3
{[%clk 0:01:12.9]} 50. f6 {[%clk 0:00:20.2]} 50... a2 {[%clk 0:01:05.4]} 51. f7
{[%clk 0:00:20.9]} 51... Kg7 {[%clk 0:01:05.2]} 52. Ra8 {[%clk 0:00:20]} 52...
Rb6+ {[%clk 0:01:04.1]} 53. Kd5 {[%clk 0:00:19.9]} 53... Kxf7 {[%clk 0:01:04]}
54. Rxa5 {[%clk 0:00:20.4]} 54... Rb5+ {[%clk 0:01:05.4]} 55. Rxb5 {[%clk
0:00:20.7]} 55... a1=Q {[%clk 0:01:06.4]} 56. Rb7+ {[%clk 0:00:19.9]} 56... Kf6
{[%clk 0:01:06.4]} 57. Rb6+ {[%clk 0:00:21.2]} 57... Kf5 {[%clk 0:01:07.8]} 58.
Rc6 {[%clk 0:00:21.3]} 58... Qd1+ {[%clk 0:01:03.8]} 59. Kc5 {[%clk 0:00:21.9]}
59... Ke5 {[%clk 0:01:05.3]} 60. Kb5 {[%clk 0:00:22.9]} 60... Qb3+ {[%clk
0:01:05.1]} 61. Ka6 {[%clk 0:00:23.2]} 61... Kd5 {[%clk 0:01:04.2]} 62. Rb6
{[%clk 0:00:24.1]} 62... Qa4+ {[%clk 0:01:02]} 63. Kb7 {[%clk 0:00:24.7]} 63...
Kc5 {[%clk 0:01:03.5]} 64. Ra6 {[%clk 0:00:22.9]} 64... Qd7+ {[%clk 0:01:03.8]}
65. Ka8 {[%clk 0:00:23.2]} 65... Kb5 {[%clk 0:01:02.7]} 66. Ra3 {[%clk
0:00:09.5]} 66... Qe8+ {[%clk 0:01:02.2]} 67. Kb7 {[%clk 0:00:09.9]} 67... Qe7+
{[%clk 0:01:03.7]} 0-1

[Event "*** MasterClass Titled Tuesday Blitz"]
[Site "Chess.com"]
[Date "2017.12.12"]
[Round "5"]
[White "Vahe_Dan"]
[Black "ShimanovAlex"]
[Result "1-0"]
[WhiteElo "2566"]
[BlackElo "2651"]
[TimeControl "180+2"]
[EndTime "14:08:45 PST"]
[Termination "Vahe_Dan won by resignation"]

1. e4 {[%clk 0:03:01.8]} 1... c6 {[%clk 0:03:00.8]} 2. Nc3 {[%clk 0:03:01.2]}
2... d5 {[%clk 0:03:02]} 3. Nf3 {[%clk 0:03:03.1]} 3... dxe4 {[%clk 0:03:03.4]}
4. Nxe4 {[%clk 0:03:03.3]} 4... Nf6 {[%clk 0:03:05]} 5. Ng3 {[%clk 0:03:02.8]}
5... c5 {[%clk 0:03:04]} 6. Bc4 {[%clk 0:02:55.9]} 6... e6 {[%clk 0:03:02.9]} 7.
O-O {[%clk 0:02:56.8]} 7... Nc6 {[%clk 0:03:04.2]} 8. b3 {[%clk 0:02:53.2]} 8...
Be7 {[%clk 0:03:04.7]} 9. Bb2 {[%clk 0:02:54.4]} 9... O-O {[%clk 0:03:06.2]} 10.
Re1 {[%clk 0:02:53.6]} 10... b6 {[%clk 0:03:06.2]} 11. d4 {[%clk 0:02:49.3]}
11... cxd4 {[%clk 0:03:06.8]} 12. Nxd4 {[%clk 0:02:49.9]} 12... Nxd4 {[%clk
0:03:07.9]} 13. Qxd4 {[%clk 0:02:48.8]} 13... Qxd4 {[%clk 0:03:08.6]} 14. Bxd4
{[%clk 0:02:50.4]} 14... Bb7 {[%clk 0:03:08.9]} 15. Nf5 {[%clk 0:02:45.8]} 15...
Ba3 {[%clk 0:03:08.5]} 16. Nh6+ {[%clk 0:02:42.9]} 16... Kh8 {[%clk 0:03:09.2]}
17. Rad1 {[%clk 0:02:43.1]} 17... Bc6 {[%clk 0:02:39.2]} 18. h3 {[%clk
0:02:41.6]} 18... Be7 {[%clk 0:02:31.9]} 19. Nf5 {[%clk 0:02:36]} 19... Ba3
{[%clk 0:02:32.5]} 20. Nh6 {[%clk 0:02:35.9]} 20... Rad8 {[%clk 0:02:08.8]} 21.
Ng4 {[%clk 0:02:35.6]} 21... Nxg4 {[%clk 0:02:05.1]} 22. hxg4 {[%clk 0:02:35.2]}
22... Kg8 {[%clk 0:02:05.2]} 23. Bc3 {[%clk 0:02:35.8]} 23... Be7 {[%clk
0:02:02.7]} 24. a4 {[%clk 0:02:33.6]} 24... Rfe8 {[%clk 0:01:44.7]} 25. Kf1
{[%clk 0:02:26.8]} 25... Kf8 {[%clk 0:01:45]} 26. f3 {[%clk 0:02:25.5]} 26...
Rc8 {[%clk 0:01:39.7]} 27. Bd4 {[%clk 0:02:09.1]} 27... Red8 {[%clk 0:01:23.7]}
28. a5 {[%clk 0:02:03]} 28... b5 {[%clk 0:01:21.7]} 29. Be2 {[%clk 0:01:58.8]}
29... Bb4 {[%clk 0:01:05.3]} 30. Bxa7 {[%clk 0:01:42]} 30... Bxa5 {[%clk
0:01:02.1]} 31. Bc5+ {[%clk 0:01:37.9]} 31... Ke8 {[%clk 0:01:02.5]} 32. b4
{[%clk 0:01:39.8]} 32... Bc7 {[%clk 0:01:03.2]} 33. c4 {[%clk 0:01:37.6]} 33...
bxc4 {[%clk 0:00:59]} 34. Bxc4 {[%clk 0:01:37.6]} 34... Rb8 {[%clk 0:00:58.9]}
35. Ke2 {[%clk 0:01:38.7]} 35... Bb6 {[%clk 0:00:50.9]} 36. Rxd8+ {[%clk
0:01:37.6]} 36... Kxd8 {[%clk 0:00:41.3]} 37. Rd1+ {[%clk 0:01:38.1]} 37... Ke8
{[%clk 0:00:40.3]} 38. Rd6 {[%clk 0:01:38]} 38... Bxc5 {[%clk 0:00:39.2]} 39.
bxc5 {[%clk 0:01:38]} 39... Ba4 {[%clk 0:00:35.6]} 40. Ke3 {[%clk 0:01:36.3]}
40... Rc8 {[%clk 0:00:35.9]} 41. Ra6 {[%clk 0:01:33.9]} 41... Bd7 {[%clk
0:00:35.7]} 42. Ra5 {[%clk 0:01:34.4]} 42... Ke7 {[%clk 0:00:36.3]} 43. Kd4
{[%clk 0:01:33.1]} 43... Rc7 {[%clk 0:00:36.5]} 44. Bd3 {[%clk 0:01:31.9]} 44...
h6 {[%clk 0:00:37.3]} 45. Be4 {[%clk 0:01:32.9]} 45... Be8 {[%clk 0:00:32.7]}
46. f4 {[%clk 0:01:33.8]} 46... Bd7 {[%clk 0:00:33.4]} 47. g3 {[%clk 0:01:32.1]}
47... Be8 {[%clk 0:00:34.4]} 48. Kc4 {[%clk 0:01:29]} 48... Bd7 {[%clk
0:00:35.1]} 49. Ra8 {[%clk 0:01:28.6]} 49... e5 {[%clk 0:00:28.8]} 50. fxe5
{[%clk 0:01:20]} 50... Bxg4 {[%clk 0:00:27.2]} 51. c6 {[%clk 0:01:19.7]} 51...
f6 {[%clk 0:00:17.8]} 52. exf6+ {[%clk 0:01:17.7]} 52... Kxf6 {[%clk 0:00:18.7]}
53. Kc5 {[%clk 0:01:18.7]} 53... Re7 {[%clk 0:00:19.5]} 54. Rf8+ {[%clk
0:01:16.1]} 54... Kg5 {[%clk 0:00:20.4]} 55. Bd5 {[%clk 0:01:13.3]} 55... Re1
{[%clk 0:00:20.8]} 56. c7 {[%clk 0:01:11.5]} 56... Rc1+ {[%clk 0:00:21.8]} 57.
Kd6 {[%clk 0:01:11.5]} 57... h5 {[%clk 0:00:21.3]} 58. Rf4 {[%clk 0:01:03.6]}
58... Bc8 {[%clk 0:00:19.7]} 59. Rf8 {[%clk 0:01:04.1]} 59... Bg4 {[%clk
0:00:20.6]} 60. Rf7 {[%clk 0:00:58.9]} 60... g6 {[%clk 0:00:20.4]} 61. Rf4
{[%clk 0:00:59.2]} 61... Bc8 {[%clk 0:00:19.6]} 62. Rd4 {[%clk 0:01:00.3]} 62...
Bf5 {[%clk 0:00:15.1]} 63. Bc6 {[%clk 0:00:58.8]} 63... Bc8 {[%clk 0:00:10.5]}
64. Bd7 {[%clk 0:00:58.6]} 64... Bb7 {[%clk 0:00:07.8]} 65. Rb4 {[%clk
0:00:57.9]} 65... Rd1+ {[%clk 0:00:08.3]} 66. Ke7 {[%clk 0:00:54.5]} 66... Ba6
{[%clk 0:00:07.5]} 67. Ra4 {[%clk 0:00:55]} 67... Rc1 {[%clk 0:00:02.9]} 68. Kd8
{[%clk 0:00:47.5]} 68... Bb7 {[%clk 0:00:03.4]} 69. Rb4 {[%clk 0:00:47.4]} 69...
Ba6 {[%clk 0:00:04.1]} 70. Rb6 {[%clk 0:00:45.8]} 70... Bd3 {[%clk 0:00:02.3]}
71. c8=Q {[%clk 0:00:42.2]} 71... Rxc8+ {[%clk 0:00:03.8]} 72. Kxc8 {[%clk
0:00:41.8]} 72... Bf5 {[%clk 0:00:05.4]} 73. Bxf5 {[%clk 0:00:37.1]} 73... gxf5
{[%clk 0:00:06.2]} 74. Rb4 {[%clk 0:00:36.1]} 1-0

[Event "*** MasterClass Titled Tuesday Blitz"]
[Site "Chess.com"]
[Date "2017.12.12"]
[Round "5"]
[White "GM-2023"]
[Black "tteshan"]
[Result "1-0"]
[WhiteElo "2059"]
[BlackElo "2029"]
[TimeControl "180+2"]
[EndTime "14:08:49 PST"]
[Termination "GM-2023 won by resignation"]

1. e4 {[%clk 0:03:01.9]} 1... c5 {[%clk 0:03:00.6]} 2. Nf3 {[%clk 0:03:02.7]}
2... e6 {[%clk 0:03:02]} 3. d4 {[%clk 0:03:04]} 3... cxd4 {[%clk 0:03:03.3]} 4.
Nxd4 {[%clk 0:03:05.9]} 4... a6 {[%clk 0:03:04.8]} 5. Bd3 {[%clk 0:03:06.6]}
5... Nf6 {[%clk 0:03:04.3]} 6. O-O {[%clk 0:03:01.6]} 6... Qc7 {[%clk
0:03:05.2]} 7. Qe2 {[%clk 0:03:01.7]} 7... d6 {[%clk 0:03:06.2]} 8. f4 {[%clk
0:03:01]} 8... Nbd7 {[%clk 0:03:00.8]} 9. c4 {[%clk 0:03:01.2]} 9... Be7 {[%clk
0:03:01.5]} 10. b3 {[%clk 0:03:01.9]} 10... b6 {[%clk 0:03:00.7]} 11. Bb2 {[%clk
0:03:02.8]} 11... Bb7 {[%clk 0:03:01.1]} 12. Nd2 {[%clk 0:03:03.6]} 12... O-O
{[%clk 0:03:00.4]} 13. Rf3 {[%clk 0:03:01.4]} 13... Rfc8 {[%clk 0:02:48.5]} 14.
Rh3 {[%clk 0:03:00.4]} 14... Nf8 {[%clk 0:02:45.8]} 15. e5 {[%clk 0:02:55.6]}
15... dxe5 {[%clk 0:02:46.3]} 16. fxe5 {[%clk 0:02:57.5]} 16... Ne8 {[%clk
0:02:47.1]} 17. Bxh7+ {[%clk 0:02:28.9]} 17... Nxh7 {[%clk 0:02:34.9]} 18. Qh5
{[%clk 0:02:28.2]} 18... Bc5 {[%clk 0:02:36.3]} 19. Qxh7+ {[%clk 0:02:24.5]}
19... Kf8 {[%clk 0:02:37.8]} 20. Qh8+ {[%clk 0:02:04.5]} 20... Ke7 {[%clk
0:02:38.9]} 21. Qh4+ {[%clk 0:02:06.4]} 21... Kd7 {[%clk 0:02:08.9]} 22. Ne4
{[%clk 0:02:06]} 22... Bxd4+ {[%clk 0:01:58.4]} 23. Bxd4 {[%clk 0:02:05]} 23...
Bxe4 {[%clk 0:01:36.5]} 24. Qxe4 {[%clk 0:02:05.8]} 24... Qc6 {[%clk 0:01:36.1]}
25. Qe3 {[%clk 0:01:41.6]} 25... Kc7 {[%clk 0:01:31.1]} 26. Rf3 {[%clk
0:01:39.8]} 26... f5 {[%clk 0:01:18.5]} 27. exf6 {[%clk 0:01:39.4]} 27... gxf6
{[%clk 0:01:18.4]} 28. Bxf6 {[%clk 0:01:29.5]} 28... Nxf6 {[%clk 0:01:14.7]} 29.
Rxf6 {[%clk 0:01:31.4]} 29... Rg8 {[%clk 0:00:58.1]} 30. g3 {[%clk 0:01:09.7]}
30... Rae8 {[%clk 0:00:51.8]} 31. Re1 {[%clk 0:00:53.6]} 31... Rgf8 {[%clk
0:00:33.9]} 32. Rxe6 {[%clk 0:00:22.6]} 32... Rxe6 {[%clk 0:00:31.8]} 33. Qxe6
{[%clk 0:00:24.5]} 33... Qf3 {[%clk 0:00:33.3]} 34. Qe7+ {[%clk 0:00:18.4]}
34... Kc8 {[%clk 0:00:30.9]} 35. Qe6+ {[%clk 0:00:16.3]} 35... Kc7 {[%clk
0:00:31]} 36. Qe7+ {[%clk 0:00:11.9]} 36... Kc8 {[%clk 0:00:31.5]} 37. Qe4
{[%clk 0:00:11.7]} 37... Qf2+ {[%clk 0:00:24.9]} 38. Kh1 {[%clk 0:00:12.7]}
38... Kb8 {[%clk 0:00:12]} 39. Qe3 {[%clk 0:00:11.7]} 39... Qf7 {[%clk 0:00:06]}
40. Qf4+ {[%clk 0:00:04.8]} 40... Qxf4 {[%clk 0:00:05.2]} 41. gxf4 {[%clk
0:00:06.7]} 41... Rxf4 {[%clk 0:00:06.5]} 42. Re2 {[%clk 0:00:08.1]} 42... Rg4
{[%clk 0:00:07.4]} 43. h3 {[%clk 0:00:08.4]} 43... Rg3 {[%clk 0:00:08.2]} 44.
Kh2 {[%clk 0:00:09.3]} 44... Rg8 {[%clk 0:00:09.7]} 45. h4 {[%clk 0:00:10.5]}
45... Kc7 {[%clk 0:00:10.6]} 46. Rd2 {[%clk 0:00:09.3]} 46... Rg4 {[%clk
0:00:10.4]} 47. Kh3 {[%clk 0:00:10.4]} 47... Rg6 {[%clk 0:00:10.9]} 48. h5
{[%clk 0:00:11.6]} 48... Rg5 {[%clk 0:00:11.3]} 49. Kh4 {[%clk 0:00:12.7]} 49...
Rg1 {[%clk 0:00:12.9]} 50. h6 {[%clk 0:00:07.4]} 50... Kc6 {[%clk 0:00:13.5]}
51. Rh2 {[%clk 0:00:07.2]} 51... Rg8 {[%clk 0:00:12.4]} 52. h7 {[%clk
0:00:07.7]} 52... Rh8 {[%clk 0:00:11.2]} 53. Kg5 {[%clk 0:00:08.8]} 53... Kd6
{[%clk 0:00:10.7]} 54. Kg6 {[%clk 0:00:09.6]} 54... Kc5 {[%clk 0:00:09.6]} 55.
a3 {[%clk 0:00:07.4]} 55... b5 {[%clk 0:00:08.9]} 56. cxb5 {[%clk 0:00:07.9]}
56... axb5 {[%clk 0:00:08.9]} 57. Kg7 {[%clk 0:00:08.2]} 57... Ra8 {[%clk
0:00:07.2]} 58. h8=Q {[%clk 0:00:07.6]} 58... Rxh8 {[%clk 0:00:08.7]} 59. Kxh8
{[%clk 0:00:08.1]} 59... Kd4 {[%clk 0:00:10.3]} 60. Rh3 {[%clk 0:00:07.9]} 60...
Kc5 {[%clk 0:00:09.8]} 61. Kg7 {[%clk 0:00:09.1]} 1-0